Cogmind - Beta 15 @@@ ROGUE MODE // 2025.06.07 @ 20:36:24 Player: A Certain Magical Minus Result: Destroyed by G-47 Trooper with Particle Gun Performance ------------- Evolutions (2) 1000 Regions Visited (4) 800 Robots Destroyed (22) 110 Value Destroyed (743) 743 Prototype IDs (1) 20 Alien Tech Used (0) 0 Bonus (200) 200 TOTAL SCORE: 2873 Bonus ------- Entered Garrisons 200 Cogmind --------- Core Integrity 0/550 Matter 300/300 Energy 259/265 System Corruption 0% Temperature Warning (325) Movement Treading (160) Location -8/Garrison Parts ------- > --- POWER (2) -------- Improved Ion Engine > --- PROPULSION (3) --- Light Treads Light Treads Light Treads > --- UTILITY (2) ------ Small Storage Unit > --- WEAPON (4) ------- Particle Gun Beamcaster Scythe > --- INVENTORY (8) ---- Ion Engine Improved Ion Engine Cooling System Compact Matter Pod (150) Melee Analysis Suite Light Assault Rifle Scythe Peak State ------------ > --- POWER ------------ Improved Ion Engine Light Angular Momentum Engine > --- PROPULSION ------- Carbon-fiber Leg Carbon-fiber Leg Carbon-fiber Leg > --- UTILITY ---------- Improved Heat Sink Small Storage Unit > --- WEAPON ----------- Beam Rifle Beamcaster Scythe > --- INVENTORY -------- Ion Engine Improved Ion Engine Cooling System Compact Matter Pod Melee Analysis Suite Authchip [R/Combat] Scythe Scythe [Rating: 32] Favorites ----------- Power Improved Ion Engine Engine Improved Ion Engine Propulsion Aluminum Leg Treads Light Treads Leg Aluminum Leg Utility Small Storage Unit Device Improved Heat Sink Storage Small Storage Unit Weapon Beam Rifle Energy Gun Beam Rifle Energy Cannon Advanced Beam Cannon Ballistic Gun Assault Rifle Slashing Weapon Scythe Build | -11 -10 -9 -8 -8 ------- Run | Yrd Mat Mat Mat Gar Slots Evolved 4 | . . 2 2 . Power 1 | . . . 1 . Propulsion 1 | . . . 1 . Utility . | . . . . . Weapon 2 | . . 2 . . Parts Attached 33 | 6 . 6 1 20 Power 6 | 1 . 1 1 3 Engine 6 | 1 . 1 1 3 Core . | . . . . . Reactor . | . . . . . Propulsion 12 | 2 . . . 10 Treads 4 | . . . . 4 Leg 8 | 2 . . . 6 Wheel . | . . . . . Hover . | . . . . . Flight . | . . . . . Utility 3 | 1 . 2 . . Device 2 | . . 2 . . Storage 1 | 1 . . . . Processor . | . . . . . Hackware . | . . . . . Protection . | . . . . . Artifact . | . . . . . Weapon 12 | 2 . 3 . 7 Energy Gun 7 | 1 . 2 . 4 Energy Cannon 1 | . . 1 . . Ballistic Gun 1 | 1 . . . . Ballistic Cannon . | . . . . . Launcher . | . . . . . Special Weapon . | . . . . . Impact Weapon . | . . . . . Slashing Weapon 3 | . . . . 3 Piercing Weapon . | . . . . . Special Melee Weapon . | . . . . . Unidentified Prototypes 1 | . . 1 . . Parts Lost 14 | . . . . 14 Power 2 | . . . . 2 Propulsion 6 | . . . . 6 Utility 1 | . . . . 1 Weapon 5 | . . . . 5 Highest Loss Streak 6 | . . . . 6 To Critical Strikes . | . . . . . Average Backups 6 | 1 2 6 7 7 Power 2 | . 1 2 2 2 Propulsion . | . . 1 2 . Utility 2 | . . 1 2 3 Weapon 1 | . . . 1 1 Tool/Special . | . . . . . Unused Backups 9 | . . 2 . 7 Power 1 | . . . . 1 Propulsion . | . . . . . Utility 7 | . . 2 . 5 Weapon 1 | . . . . 1 Tool/Special . | . . . . . Average Slot Usage (%) 80 | . 85 90 74 72 Engine 11 | . 14 11 11 11 Treads 4 | . . . . 8 Leg 17 | . 28 22 18 12 Device 6 | . . 10 9 5 Storage 10 | . 14 11 9 9 Energy Gun 19 | . 14 24 18 16 Ballistic Gun 5 | . 14 11 9 . Slashing Weapon 4 | . . . . 9 Peak Build Rating 32 | 6 6 14 13 32 Average Rating 15 | 3 6 11 13 20 On Entrance 7 | . 6 6 13 13 Naked Turns . | . . . . . Heaviest Build 32 | 14 14 22 20 32 Greatest Support 60 | 20 20 20 20 60 Greatest Overweight (x) 2 | . . 1 . 2 Average Overweight (x) . | . . . . . Largest Inventory Capacity 8 | 8 8 8 8 8 Average Capacity 7 | 7 8 8 8 8 Most Carried 8 | 5 4 8 8 8 Average Carried 6 | 1 2 6 7 7 Final Capacity 8 | 8 8 8 8 8 Final Carried 8 | 1 4 8 8 7 Class Distribution -------------------- 48% | Scavenger-Mutant 22% | Gunner 17% | Mutant 11% | Scavenger-Gunner Dominant Class ---------------- Mutant | -10/Materials Gunner | -9/Materials Gunner | -8/Materials Scavenger-Mutant | -8/Garrison Resources | -11 -10 -9 -8 -8 ----------- Run | Yrd Mat Mat Mat Gar Matter Collected 796 | 207 40 126 . 423 Remotely . | . . . . . Salvage Created 989 | . 40 297 . 652 Parts 49 | . 3 17 . 29 Haulers Intercepted . | . . . . . Recyclers Shooed 1 | . . 1 . . Parts Field Recycled . | . . . . . Retrieved Matter . | . . . . . Parts Self-Destructed . | . . . . . Prevented . | . . . . . Kills | -11 -10 -9 -8 -8 ------- Run | Yrd Mat Mat Mat Gar Combat Hostiles Destroyed 20 | . 1 4 . 15 Melee 1 | . . . . 1 Guns 19 | . 1 4 . 14 Classes Destroyed 6 | . 1 3 . 2 Recycler 1 | . . 1 . . Watcher 1 | . . 1 . . Swarmer 5 | . . . . 5 Grunt 6 | . 1 2 . 3 Sentry 7 | . . 2 . 5 Thug 1 | . . . . 1 Butcher 1 | . . . . 1 Best Kill Streak 4 | . 1 2 . 4 Combat Bots Only 4 | . 1 1 . 4 Max Kills in Single Turn 1 | . 1 1 . 1 Gunslinging . | . . . . . Exploded . | . . . . . Melee 1 | . . . . 1 Uniques/NPCs Destroyed . | . . . . . Combat | -11 -10 -9 -8 -8 -------- Run | Yrd Mat Mat Mat Gar Hostile Shots Fired 219 | . . 22 . 197 Missed 59 | . . 7 . 52 Hits 160 | . . 15 . 145 Projectile 160 | . . 15 . 145 Critical Strikes 6 | . . . . 6 Damage Taken 2151 | . . 227 . 1924 Core 576 | . . 14 . 562 Absorbed by Shields . | . . . . . Core Remaining (%) 98 | 100 100 96 . . Volleys Fired 77 | . 3 15 . 59 Largest 4 | . 2 4 . 3 Hottest 166 | . 70 166 . 140 Shots Fired 155 | . 6 46 . 103 Gun 155 | . 6 46 . 103 Cannon . | . . . . . Launcher . | . . . . . Special . | . . . . . Kinetic 29 | . 3 15 . 11 Thermal 126 | . 3 31 . 92 Explosive . | . . . . . Electromagnetic . | . . . . . Robot Hit Streak 14 | . 2 10 . 14 Robot Miss Streak 5 | . 2 5 . 3 Penetration Max . | . . . . . Secondary Targets 3 | . . . . 3 Max Gunslinging Chain 1 | . . . . 1 Shots Hit Robots 101 | . 2 25 . 74 Core Hits 43 | . 2 12 . 29 Critical Kills . | . . . . . Critical Parts Destroyed . | . . . . . Critical Strikes 10 | . 1 2 . 7 Burn 10 | . 1 2 . 7 Melee Attacks 2 | . . . . 2 Impact . | . . . . . Slashing 2 | . . . . 2 Piercing . | . . . . . Sneak Attacks . | . . . . . Combat Hostiles . | . . . . . Follow-up Attacks . | . . . . . Damage Inflicted 1535 | . 24 315 . 1196 Guns 1503 | . 24 313 . 1166 Cannons . | . . . . . Explosions . | . . . . . Melee 30 | . . . . 30 Ramming 2 | . . 2 . . Kinetic 249 | . 12 116 . 121 Thermal 1254 | . 12 197 . 1045 Explosive . | . . . . . Electromagnetic . | . . . . . Impact . | . . . . . Slashing 30 | . . . . 30 Piercing . | . . . . . Highest Corruption . | . . . . . Average Corruption . | . . . . . Corruption Purged . | . . . . . Corruption Blocked . | . . . . . Overload Shots . | . . . . . Overflow Damage . | . . . . . Projectiles . | . . . . . Explosions . | . . . . . Melee . | . . . . . Knockbacks . | . . . . . Impact . | . . . . . Kinetic . | . . . . . Secondary . | . . . . . Self-Inflicted Damage . | . . . . . Shots . | . . . . . Rammed . | . . . . . Targets Rammed 1 | . . 1 . . Kicked 1 | . . 1 . . Crushed . | . . . . . Highest Temperature 342 | . 9 51 . 342 Average Temperature 87 | . 6 24 . 102 Received Heat Transfer 885 | . . 93 . 792 Effects 1 | . . . . 1 Interference 1 | . . . . 1 Siege Activations . | . . . . . Martial Activations . | . . . . . Shielding Activations . | . . . . . Robots Disrupted . | . . . . . Combat Hostiles . | . . . . . Robots Corrupted . | . . . . . Combat Hostiles . | . . . . . Parts Fried . | . . . . . Impact Corruptions . | . . . . . Robots Melted . | . . . . . Combat Hostiles . | . . . . . Parts Melted 12 | . . . . 12 Heat Transferred 3764 | . 111 668 . 2985 Parts Sabotaged . | . . . . . Parts Stolen . | . . . . . Parts Stripped . | . . . . . Power Chain Reactions . | . . . . . Alert | -11 -10 -9 -8 -8 ------- Run | Yrd Mat Mat Mat Gar Maximum Alert Level . | . . . . . Low Security (%) 100 | 100 100 100 100 100 Level 1 . | . . . . . Level 2 . | . . . . . Level 3 . | . . . . . Level 4 . | . . . . . Level 5 . | . . . . . High Security . | . . . . . Max Security . | . . . . . Peak Influence 167 | . 30 40 . 167 Initial . | . . . . . Average 49 | . 7 6 . 88 Influence Increases 459 | . 30 122 . 307 Destroy 0b10 Robot/C 400 | . 20 80 . 300 Destroy 0b10 Robot/NC 10 | . . 10 . . Destroy Leader 42 | . 10 32 . . Successful Hack 7 | . . . . 7 Influence Decreases 292 | . 30 122 . 140 Time Decay 152 | . 30 122 . . Lost Part 140 | . . . . 140 Squads Dispatched 1 | . 1 . . . Investigation . | . . . . . Extermination . | . . . . . Reinforcement 1 | . 1 . . . Assault . | . . . . . Garrison . | . . . . . Intercept . | . . . . . Searches Triggered . | . . . . . Construction Impeded . | . . . . . Haulers Reinforced . | . . . . . Active Scanning Responses . | . . . . . Cargo Convoy Interrupts . | . . . . . Stealth | -11 -10 -9 -8 -8 --------- Run | Yrd Mat Mat Mat Gar Distress Signals 2 | . . . . 2 Communications Jammed . | . . . . . Distress Signals . | . . . . . Times Spotted 28 | . 3 5 . 20 Peak Tracking Total 7 | . 1 2 . 7 Tactical Retreats . | . . . . . Traps | -11 -10 -9 -8 -8 ------- Run | Yrd Mat Mat Mat Gar Traps Triggered 2 | . . . . 2 Indirectly . | . . . . . Trap Hack Attempts . | . . . . . Triggered . | . . . . . Disarmed . | . . . . . Reprogrammed . | . . . . . Reused . | . . . . . Traps Extracted . | . . . . . Installed . | . . . . . Triggered . | . . . . . Machines | -11 -10 -9 -8 -8 ---------- Run | Yrd Mat Mat Mat Gar Machines Disabled . | . . . . . Max in Single Turn . | . . . . . Machines Repaired . | . . . . . Machines Dismantled . | . . . . . Machines Sabotaged . | . . . . . Overloaded Fab Kills . | . . . . . Hacking | -11 -10 -9 -8 -8 --------- Run | Yrd Mat Mat Mat Gar Machines Accessed 5 | . . 3 1 1 Terminals 2 | . . 1 . 1 Fabricators . | . . . . . Repair Stations 1 | . . 1 . . Recycling Units . | . . . . . Scanalyzers 1 | . . 1 . . Garrison Access 1 | . . . 1 . Total Hacks 8 | . . 5 1 2 Successful 6 | . . 4 1 1 Failed 2 | . . 1 . 1 Catastrophic . | . . . . . Database Lockouts . | . . . . . Manual . | . . . . . Terminals 3 | . . 1 . 2 Fabricators . | . . . . . Repair Stations 2 | . . 2 . . Recycling Units . | . . . . . Scanalyzers 2 | . . 2 . . Garrison Access 1 | . . . 1 . Terminal Hacks 2 | . . 1 . 1 Record 1 | . . 1 . . Open Door 1 | . . . . 1 Fabricator Hacks . | . . . . . Repair Station Hacks 1 | . . 1 . . Scan Component 1 | . . 1 . . Recycling Unit Hacks . | . . . . . Scanalyzer 2 | . . 2 . . Insert Component 1 | . . 1 . . Analyze 1 | . . 1 . . Garrison Access Hacks 1 | . . . 1 . Unlock Access 1 | . . . 1 . Unauthorized Hacks . | . . . . . Terminals . | . . . . . Fabricators . | . . . . . Repair Stations . | . . . . . Recycling Units . | . . . . . Scanalyzers . | . . . . . Garrison Access . | . . . . . Data Cores Recovered . | . . . . . Used . | . . . . . Hacking Detections 2 | . . 1 1 . Full Trace Events . | . . . . . Feedback Events . | . . . . . Feedback Blocked . | . . . . . Robot Schematics Acquired . | . . . . . Robots Built . | . . . . . Authchips . | . . . . . Time . | . . . . . Total Robot Build Rating . | . . . . . Part Schematics Acquired 1 | . . 1 . . Parts Built . | . . . . . Authchips . | . . . . . Time . | . . . . . Total Part Build Rating . | . . . . . Parts Repaired . | . . . . . Time . | . . . . . Parts Recycled . | . . . . . Recycled Matter . | . . . . . Retrieved Matter . | . . . . . Retrieved Components . | . . . . . Parts Scanalyzed 1 | . . 1 . . Part Schematics Acquired 1 | . . 1 . . Parts Damaged . | . . . . . Bothacking | -11 -10 -9 -8 -8 ------------ Run | Yrd Mat Mat Mat Gar Used RIF Installer . | . . . . . Robots Hacked . | . . . . . Non-combat . | . . . . . Combat . | . . . . . Robot Hacks Applied . | . . . . . Relay Couplers Released . | . . . . . Fabnet Peak Effective % . | . . . . . Robots Rewired . | . . . . . Allies Hacked . | . . . . . Hacks Repelled . | . . . . . Allies | -11 -10 -9 -8 -8 -------- Run | Yrd Mat Mat Mat Gar Total Allies . | . . . . . Largest Group . | . . . . . Highest-Rated Group . | . . . . . Highest-Rated Ally . | . . . . . Total Orders . | . . . . . Ally Attacks . | . . . . . Total Damage . | . . . . . Kills . | . . . . . Allies Corrupted . | . . . . . Allies Melted . | . . . . . Intel | -11 -10 -9 -8 -8 ------- Run | Yrd Mat Mat Mat Gar Active Infowar (turns) . | . . . . . Robot Analysis Total . | . . . . . Derelict Logs Recovered . | . . . . . Drone Launches . | . . . . . Drone Recoveries . | . . . . . Exploration | -11 -10 -9 -8 -8 ------------- Run | Yrd Mat Mat Mat Gar Turns Passed 1540 | 57 116 524 23 820 Spaces Moved 848 | 49 87 306 17 389 Core 20 | 20 . . . . Treads 143 | . . . . 143 Legs 685 | 29 87 306 17 246 Wheels . | . . . . . Hover . | . . . . . Flight . | . . . . . Fastest Speed 50 | 50 120 120 120 120 Average Speed 144 | 91 120 147 120 154 Slowest Speed 260 | 120 120 190 120 260 Overloaded Moves . | . . . . . Propulsion Burnouts . | . . . . . Robots Hopped . | . . . . . Potential Cave-ins . | . . . . . Cave-ins Triggered . | . . . . . Exploration Rate (%) 14 | 4 25 19 2 23 Regions Visited 4 Branch Regions . Pre-discovered Areas . | . . . . . Known Exits Taken 1 | . . . 1 . Unknown Exits Taken 3 | 1 1 1 . . Scrap Searched . | . . . . . Spaces Dug . | . . . . . Terrain Destroyed . | . . . . . Melee . | . . . . . Projectile . | . . . . . AOE . | . . . . . Terrain Rammed . | . . . . . Walls Destroyed . | . . . . . Machines Disabled . | . . . . . Actions | -11 -10 -9 -8 -8 --------- Run | Yrd Mat Mat Mat Gar Total 1037 | 61 92 348 20 516 Wait 2 | . . 2 . . Move 844 | 48 86 305 16 389 Hop . | . . . . . Pick Up 47 | 7 3 12 1 24 Fast Attach 2 | . . . . 2 Attach 32 | 6 . 5 1 20 Detach 5 | . . 1 1 3 Swap 5 | . . 1 . 4 Drop 20 | . . 6 1 13 Fire 77 | . 3 15 . 59 Melee 2 | . . . . 2 Ram . | . . . . . Kick 1 | . . 1 . . Crush . | . . . . . Escape Stasis . | . . . . . Rewire . | . . . . . Trap . | . . . . . Miscellaneous . | . . . . . Route ------- -11/Scrapyard -10/Materials -9/Materials -8/Materials -8/Garrison History --------- Turn | Location | Event 38 | -11/Scrapyard | Discovered new exit (range 12) 58 | -11/Scrapyard | Entered Materials 162 | -10/Materials | Discovered new exit (range 10) 174 | -10/Materials | Entered another Materials area 174 | -9/Materials | Evolved 2 slots: Weapon x2 678 | -9/Materials | Discovered new exit (range 15) 698 | -9/Materials | Entered another Materials area 698 | -8/Materials | Evolved 2 slots: Power x1, Propulsion x1 717 | -8/Materials | Identified exit to Garrison 721 | -8/Materials | Entered Garrison 745 | -8/Garrison | Triggered checkpoint 845 | -8/Garrison | Lost 6 parts (2n4w) 864 | -8/Garrison | Core integrity fell below 50% 900 | -8/Garrison | Lost 3 parts (1p2n) 1098 | -8/Garrison | Build established: Scavenger-Mutant 1229 | -8/Garrison | Core integrity fell below 20% 1265 | -8/Garrison | Lost 5 parts (1p2n1u1w) 1541 | -8/Garrison | Destroyed by G-47 Trooper with Particle Gun Last Messages --------------- Carbon-fiber Leg destroyed. G-47 Trooper destroyed. Acquired Particle Gun. Dropped Scythe. Acquired Scythe. Particle Gun melted. G-47 Trooper destroyed. Acquired 20 matter. Dropped Authchip [R/Combat]. Acquired Lgt. Assault Rifle. Dropped Scythe. Acquired Lgt. Treads. Acquired 15 matter. Acquired 5 matter. Acquired Lgt. Treads. Dropped Carbon-fiber Leg. Acquired 20 matter. W-25 Informer sends out distress signal. Flight Unit melted. S-10 Pest destroyed. Map ----- +----------------------------------------------------+ | ??????????????????# ###???## ##??????????????????? | | ??????????????????# ##????# =!#??????????????????? | | ??????????????????# T#????#! !#??????????????????? | | ??????????????????# ##????#! !#??????????????????? | | ????????????????### #?????#/ !#??????????????????? | | ????????????????# ######## ##??????????????????? | | ????????????# + *! !#???????????????????? | | ????????????# ### ##########???????????????????? | | ????????????????### #????????????????????????????? | | #####?????????????# #????????????????????????????? | | # #???????####### #????????????????????????????? | | # ######### #????????????????????????????? | | # ######????????????????????????????? | | # #?????????????????????????????????? | | ############# #?????????????????????????????????? | | ????????????# #?????????????????????????????????? | | #######?????# #?????????????????????????????????? | | """"""#?????# #?????????????????????????????????? | | !! !!"#?????# #?????????????????????????????????? | | #?????# #?????????????????????????????????? | | #?????# #?????????????????????? #?????????? | | #?????# #????????######""""## #?????????? | | ####### ##########= #?????????? | | / % =% * g + ????????? | | % *%* %=*%! ^^ #?????????? | | !!!!!"###################@ ##^^^ ## #?????????? | | """"""#?????????????????# #???? #??????????????? | | #######???????????????? ???????????????????? | | ??????????????????????# ?????????????????? | | ??????????????????????# ???????????????? | | ??????????????????????# ?????????????? | | ??????????????????????### ##s ## ???????????? | | ????????????????????????# *%#? g #??? ??????????? | | ???????????????????????? =[ ?? ?????????????? | | ???????????????????????? % ?? ????????????? | | ????????????????????????# ?? ???????????? | | ????????????????????????## ##??""####???????????? | | ?????????????????????????? #????????????????????? | | ?????????????????????????? #????????????????????? | | ?????????????????????????? #????????????????????? | | ?????????????????????????? ?????????????????????? | | ?????????????????????????????????????????????????? | | ?????????????????????????????????????????????????? | | ?????????????????????????????????????????????????? | | ?????????????????????????????????????????????????? | | ?????????????????????????????????????????????????? | | ?????????????????????????????????????????????????? | | ?????????????????????????????????????????????????? | | ?????????????????????????????????????????????????? | | ?????????????????????????????????????????????????? | +----------------------------------------------------+ Best States ------------- Heat Dissipation 50 Energy Generation 25 Energy Capacity 315 Matter Stores 300 Matter Capacity 300 Sight Range 16 Terrain Scan Density 10 Evasion (%) 55 Recoil Reduction 3 Authchip Count 1 Item Schematics ----------------- Ion Engine | -9/Materials | Scanalyzed Robot Schematics ------------------ None Fabricated ------------ Nothing Repaired ---------- Nothing Alien Tech Used ----------------- None Achievements -------------- Crack Shot Risk Taker Challenges ------------ None Game ------ Seed AerolevMicroCorpse Manual? 0 Play Time 00:29:39 Cumulative 1.3 hours Start 2025.06.07 @ 14:23:22 End 2025.06.07 @ 20:36:24 Sessions 3 Manual Loads 0 Difficulty Rogue Special Mode None Game No. 4 Rogue 4 Adventurer 0 Explorer 0 Win Type - Total 0 Types 0/0/0/0/0/0/0/0/0/0 Lore% 0 Gallery% 3 Achievement% 3 Wizard Run 0 Options --------- Layout 1 ASCII 0 Keyboard 0 Movement Mouse Keybinds 0 Fullscreen 1 Font 24/Smallcaps Map View 25x17 Zoom Use 99% Tactical HUD 0 Map Filters NONE Filters NONE Steam 1 RUN: debc090c-2427-4c55-ab64-10882e7c1d75